[Event "Mistrovství Čech mládeže 2023 - HD12"]
[Site "Harrachov, Czech Republic"]
[Date "2023.10.25"]
[Round "6.5"]
[White "Lutskiy, Mikhail"]
[Black "Fadrný, Jáchym"]
[Result "1-0"]
[TimeControl "90m + 30s"]
[WhiteElo "1353"]
[BlackElo "1365"]

1. e4 {[%clk 01:30:48]} {[%emt 00:00:11]} c6 {[%clk 01:30:45]} {[%emt
00:00:16]} 2. d4 {[%clk 01:31:06]} {[%emt 00:00:10]} d5 {[%clk 01:31:04]}
{[%emt 00:00:11]} 3. Nc3 {[%clk 01:31:23]} {[%emt 00:00:14]} dxe4 {[%clk
01:31:10]} {[%emt 00:00:24]} 4. Nxe4 {[%clk 01:31:24]} {[%emt 00:00:26]} Nd7
{[%clk 01:31:11]} {[%emt 00:00:33]} 5. Bg5 {[%clk 01:29:58]} {[%emt 00:01:55]}
h6 {[%clk 01:29:50]} {[%emt 00:01:51]} 6. Nd6+ {[%clk 01:29:52]} {[%emt
00:00:36]} exd6 {[%clk 01:29:36]} {[%emt 00:00:44]} 7. Bxd8 {[%clk 01:30:10]}
{[%emt 00:00:12]} Kxd8 {[%clk 01:30:04]} {[%emt 00:00:02]} 8. Nf3 {[%clk
01:30:15]} {[%emt 00:00:25]} Ngf6 {[%clk 01:30:04]} {[%emt 00:00:31]} 9. Bd3
{[%clk 01:30:23]} {[%emt 00:00:21]} g5 {[%clk 01:29:56]} {[%emt 00:00:39]} 10.
h3 {[%clk 01:30:39]} {[%emt 00:00:13]} Bg7 {[%clk 01:30:17]} {[%emt 00:00:09]}
11. c3 {[%clk 01:30:05]} {[%emt 00:01:05]} Re8+ {[%clk 01:30:26]} {[%emt
00:00:21]} 12. Be2 {[%clk 01:30:14]} {[%emt 00:00:19]} Nd5 {[%clk 01:30:13]}
{[%emt 00:00:45]} 13. g3 {[%clk 01:30:16]} {[%emt 00:00:28]} b6 {[%clk
01:29:58]} {[%emt 00:00:45]} 14. Qc2 {[%clk 01:30:18]} {[%emt 00:00:26]} Bb7
{[%clk 01:26:44]} {[%emt 00:03:46]} 15. O-O-O {[%clk 01:30:13]} {[%emt
00:00:34]} N7f6 {[%clk 01:26:15]} {[%emt 00:01:00]} 16. Bd3 {[%clk 01:29:59]}
{[%emt 00:00:41]} Rc8 {[%clk 01:23:35]} {[%emt 00:03:12]} 17. Bf5 {[%clk
01:29:00]} {[%emt 00:01:29]} Rc7 {[%clk 01:23:46]} {[%emt 00:00:19]} 18. Rhe1
{[%clk 01:29:07]} {[%emt 00:00:22]} Rf8 {[%clk 01:21:34]} {[%emt 00:02:43]} 19.
Kb1 {[%clk 01:27:02]} {[%emt 00:02:34]} Ne7 {[%clk 01:19:59]} {[%emt 00:02:06]}
20. Bd3 {[%clk 01:27:05]} {[%emt 00:00:26]} Bc8 {[%clk 01:19:00]} {[%emt
00:01:31]} 21. h4 {[%clk 01:26:46]} {[%emt 00:00:49]} g4 {[%clk 01:15:53]}
{[%emt 00:03:37]} 22. Nd2 {[%clk 01:26:41]} {[%emt 00:00:32]} d5 {[%clk
01:11:04]} {[%emt 00:05:21]} 23. Re2 {[%clk 01:26:02]} {[%emt 00:01:09]} Nh5
{[%clk 01:10:37]} {[%emt 00:00:57]} 24. Rde1 {[%clk 01:25:08]} {[%emt
00:01:24]} f5 {[%clk 01:09:21]} {[%emt 00:01:47]} 25. Qb3 {[%clk 01:25:03]}
{[%emt 00:00:35]} f4 {[%clk 01:08:43]} {[%emt 00:01:07]} 26. Qa3 {[%clk
01:20:56]} {[%emt 00:04:36]} Bf6 {[%clk 01:07:18]} {[%emt 00:01:55]} 27. gxf4
{[%clk 01:18:52]} {[%emt 00:02:35]} c5 {[%clk 01:00:18]} {[%emt 00:07:30]} 28.
dxc5 {[%clk 01:19:03]} {[%emt 00:00:19]} bxc5 {[%clk 00:59:24]} {[%emt
00:01:25]} 29. Qa5 {[%clk 01:17:47]} {[%emt 00:01:45]} Rf7 {[%clk 00:57:12]}
{[%emt 00:02:41]} 30. Qa4 {[%clk 01:10:06]} {[%emt 00:08:13]} Bd7 {[%clk
00:56:59]} {[%emt 00:00:42]} 31. Bb5 {[%clk 01:06:55]} {[%emt 00:03:40]} Bxb5
{[%clk 00:55:37]} {[%emt 00:01:53]} 32. Qxb5 {[%clk 01:07:02]} {[%emt
00:00:24]} Nxf4 {[%clk 00:52:58]} {[%emt 00:03:09]} 33. Re6 {[%clk 01:06:34]}
{[%emt 00:00:57]} Nxe6 {[%clk 00:43:03]} {[%emt 00:10:23]} 34. Rxe6 {[%clk
01:06:51]} {[%emt 00:00:14]} Bg7 {[%clk 00:37:22]} {[%emt 00:06:12]} 35. Rd6+
{[%clk 01:06:31]} {[%emt 00:00:51]} Kc8 {[%clk 00:36:16]} {[%emt 00:01:36]} 36.
Qe8+ {[%clk 01:05:46]} {[%emt 00:01:14]} Kb7 {[%clk 00:36:28]} {[%emt
00:00:18]} 37. Qxf7 {[%clk 01:06:03]} {[%emt 00:00:13]} Nc8 {[%clk 00:36:28]}
{[%emt 00:00:30]} 38. Qxd5+ {[%clk 01:06:11]} {[%emt 00:00:20]} 1-0

[Event "Mistrovství Čech mládeže 2023 - HD12"]
[Site "Harrachov, Czech Republic"]
[Date "2023.10.25"]
[Round "6.6"]
[White "Honcharov, Makar"]
[Black "Křivka, Lukáš"]
[Result "1-0"]
[TimeControl "90m + 30s"]
[WhiteElo "1872"]
[BlackElo "1386"]

1. e4 {[%clk 01:30:30]} {[%emt 00:00:19]} c6 {[%clk 01:30:29]} {[%emt
00:00:32]} 2. d4 {[%clk 01:30:53]} {[%emt 00:00:07]} d5 {[%clk 01:30:30]}
{[%emt 00:00:31]} 3. e5 {[%clk 01:31:17]} {[%emt 00:00:05]} Bf5 {[%clk
01:30:24]} {[%emt 00:00:36]} 4. Nf3 {[%clk 01:31:00]} {[%emt 00:00:45]} e6
{[%clk 01:29:19]} {[%emt 00:01:36]} 5. Be2 {[%clk 01:31:20]} {[%emt 00:00:09]}
c5 {[%clk 01:28:29]} {[%emt 00:01:22]} 6. Be3 {[%clk 01:31:23]} {[%emt
00:00:26]} Qb6 {[%clk 01:23:59]} {[%emt 00:05:01]} 7. Nc3 {[%clk 01:30:33]}
{[%emt 00:01:20]} Nd7 {[%clk 01:10:04]} {[%emt 00:14:25]} 8. O-O {[%emt
00:03:55]} a6 {[%clk 00:59:15]} {[%emt 00:10:49]} 9. dxc5 {[%clk 01:25:36]}
{[%emt 00:02:31]} Bxc5 {[%emt 00:04:02]} 10. Na4 {[%clk 01:25:58]} Qc7 {[%clk
00:55:05]} {[%emt 00:01:16]} 11. Nxc5 {[%emt 00:00:08]} Nxc5 {[%clk 00:55:27]}
{[%emt 00:00:08]} 12. Qd4 {[%clk 01:24:40]} {[%emt 00:02:09]} Rc8 {[%clk
00:52:50]} {[%emt 00:03:07]} 13. Qh4 {[%clk 01:24:20]} {[%emt 00:00:50]} Ne7
{[%clk 00:41:21]} {[%emt 00:12:00]} 14. g4 {[%clk 01:22:28]} {[%emt 00:02:22]}
Ng6 {[%clk 00:39:58]} {[%emt 00:01:52]} 15. Qg3 {[%clk 01:18:43]} {[%emt
00:04:16]} Be4 {[%clk 00:23:20]} {[%emt 00:17:07]} 16. Bd4 {[%clk 01:17:21]}
{[%emt 00:01:52]} Bxf3 {[%clk 00:22:57]} {[%emt 00:00:54]} 17. Bxf3 {[%clk
01:17:27]} {[%emt 00:00:22]} Nd7 {[%clk 00:22:55]} {[%emt 00:00:34]} 18. Rfe1
{[%clk 01:17:19]} {[%emt 00:00:38]} Qc4 {[%clk 00:20:57]} {[%emt 00:02:28]} 19.
c3 {[%clk 01:16:34]} {[%emt 00:01:14]} Qc7 {[%clk 00:16:31]} {[%emt 00:04:56]}
20. h4 {[%clk 01:12:29]} {[%emt 00:04:34]} Ne7 {[%clk 00:15:34]} {[%emt
00:01:28]} 21. c4 {[%clk 01:11:47]} {[%emt 00:01:12]} Nc6 {[%clk 00:14:31]}
{[%emt 00:01:34]} 22. Bc3 {[%clk 01:11:02]} {[%emt 00:01:14]} dxc4 {[%clk
00:12:52]} {[%emt 00:02:10]} 23. Rad1 {[%clk 01:10:39]} {[%emt 00:00:52]} Rd8
{[%clk 00:11:55]} {[%emt 00:01:27]} 24. g5 {[%clk 01:10:15]} {[%emt 00:00:52]}
Ne7 {[%clk 00:10:43]} {[%emt 00:01:44]} 25. Be4 {[%clk 01:09:49]} {[%emt
00:00:56]} b5 {[%clk 00:09:28]} {[%emt 00:01:46]} 26. h5 {[%clk 01:06:30]}
{[%emt 00:03:48]} g6 {[%clk 00:07:01]} {[%emt 00:02:57]} 27. h6 {[%clk
01:06:22]} {[%emt 00:00:24]} a5 {[%clk 00:05:46]} {[%emt 00:02:00]} 28. a3
{[%clk 01:01:05]} {[%emt 00:05:47]} a4 {[%clk 00:01:58]} {[%emt 00:04:18]} 29.
Bb4 {[%clk 00:58:44]} {[%emt 00:02:50]} Qxe5 {[%clk 00:01:02]} {[%emt
00:01:27]} 30. Qxe5 {[%clk 00:58:49]} {[%emt 00:00:25]} Nxe5 {[%clk 00:01:27]}
{[%emt 00:00:05]} 31. Rxd8+ {[%clk 00:59:08]} {[%emt 00:00:11]} Kxd8 {[%clk
00:01:52]} {[%emt 00:00:05]} 32. Bc3 {[%clk 00:59:08]} {[%emt 00:00:30]} Nd3
{[%clk 00:01:10]} {[%emt 00:01:12]} 33. Bxd3 {[%clk 00:59:23]} {[%emt
00:00:15]} Re8 {[%clk 00:01:04]} {[%emt 00:00:36]} 34. Be4 {[%clk 00:59:43]}
{[%emt 00:00:10]} Kc7 {[%clk 00:00:47]} {[%emt 00:00:47]} 35. Bf6 {[%clk
00:58:37]} {[%emt 00:01:35]} Kb6 {[%clk 00:00:50]} {[%emt 00:00:28]} 36. Kg2
{[%clk 00:57:44]} {[%emt 00:01:20]} Kc7 {[%clk 00:01:05]} {[%emt 00:00:17]} 37.
Rd1 {[%clk 00:57:45]} {[%emt 00:00:28]} Nc6 {[%clk 00:01:25]} {[%emt 00:00:12]}
38. f4 {[%clk 00:58:03]} {[%emt 00:00:11]} Rc8 {[%clk 00:01:31]} {[%emt
00:00:25]} 39. Kf3 {[%clk 00:57:49]} {[%emt 00:00:43]} Kb6 {[%clk 00:01:37]}
{[%emt 00:00:25]} 40. Rd7 {[%clk 00:57:51]} {[%emt 00:00:27]} Rc7 {[%clk
00:02:00]} {[%emt 00:00:08]} 41. Bxc6 {[%clk 00:58:13]} {[%emt 00:00:08]} Kxc6
{[%clk 00:02:24]} {[%emt 00:00:06]} 42. Rd8 {[%clk 00:58:34]} {[%emt 00:00:08]}
Rd7 {[%clk 00:02:18]} {[%emt 00:00:37]} 43. Rh8 {[%clk 00:58:57]} {[%emt
00:00:06]} Rd3+ {[%clk 00:02:30]} {[%emt 00:00:18]} 44. Ke4 {[%clk 00:59:18]}
{[%emt 00:00:08]} Rh3 {[%clk 00:02:35]} {[%emt 00:00:23]} 45. Rxh7 {[%clk
00:59:28]} {[%emt 00:00:23]} Kd6 {[%clk 00:01:45]} {[%emt 00:01:19]} 46. Rxf7
{[%clk 00:59:29]} {[%emt 00:00:30]} Rh1 {[%clk 00:01:48]} {[%emt 00:00:27]} 47.
h7 {[%clk 00:59:44]} {[%emt 00:00:15]} Re1+ {[%clk 00:02:13]} {[%emt 00:00:05]}
48. Kf3 {[%clk 01:00:04]} {[%emt 00:00:10]} Rh1 {[%clk 00:02:34]} {[%emt
00:00:10]} 49. h8=Q {[%clk 01:00:18]} {[%emt 00:00:16]} Rxh8 {[%clk 00:02:55]}
{[%emt 00:00:08]} 50. Bxh8 {[%clk 01:00:42]} {[%emt 00:00:06]} 1-0

[Event "Mistrovství Čech mládeže 2023 - HD12"]
[Site "Harrachov, Czech Republic"]
[Date "2023.10.25"]
[Round "6.7"]
[White "Gernert, Tomáš"]
[Black "Koupil, Štěpán"]
[Result "1-0"]
[TimeControl "90m + 30s"]
[WhiteElo "1389"]
[BlackElo "1467"]

1. c4 {[%clk 01:30:56]} {[%emt 00:00:03]} Nf6 {[%clk 01:30:33]} {[%emt
00:00:28]} 2. Nc3 {[%clk 01:31:19]} {[%emt 00:00:07]} e6 {[%clk 01:30:48]}
{[%emt 00:00:15]} 3. g3 {[%clk 01:31:16]} {[%emt 00:00:33]} d5 {[%clk
01:30:26]} {[%emt 00:00:51]} 4. b3 {[%clk 01:31:35]} {[%emt 00:00:11]} Be7
{[%clk 01:29:54]} {[%emt 00:01:03]} 5. Bg2 {[%clk 01:31:12]} {[%emt 00:00:52]}
O-O {[%clk 01:29:04]} {[%emt 00:01:20]} 6. e3 {[%clk 01:31:16]} {[%emt
00:00:26]} b6 {[%clk 01:27:24]} {[%emt 00:02:10]} 7. Nge2 {[%clk 01:30:46]}
{[%emt 00:01:00]} Bb7 {[%clk 01:26:48]} {[%emt 00:01:07]} 8. O-O {[%clk
01:29:31]} {[%emt 00:01:44]} c5 {[%clk 01:24:39]} {[%emt 00:02:39]} 9. f4
{[%clk 01:29:05]} Nbd7 {[%clk 01:22:03]} {[%emt 00:04:02]} 10. f5 {[%clk
01:23:48]} {[%emt 00:05:47]} Ne5 {[%clk 01:16:59]} {[%emt 00:05:34]} 11. Nf4
{[%clk 01:22:48]} {[%emt 00:01:30]} Qd7 {[%clk 01:13:21]} {[%emt 00:04:08]} 12.
d4 {[%clk 01:19:29]} {[%emt 00:03:49]} Neg4 {[%clk 01:11:15]} {[%emt 00:02:35]}
13. cxd5 {[%clk 01:16:48]} {[%emt 00:03:11]} Nxd5 {[%clk 01:09:17]} {[%emt
00:02:29]} 14. Ncxd5 {[%clk 01:13:27]} {[%emt 00:03:51]} exd5 {[%clk 01:08:38]}
{[%emt 00:01:09]} 15. Qxg4 {[%clk 01:13:18]} {[%emt 00:00:39]} cxd4 {[%clk
01:06:44]} {[%emt 00:02:24]} 16. Bb2 {[%clk 01:11:16]} {[%emt 00:02:32]} Ba6
{[%clk 01:06:36]} {[%emt 00:00:38]} 17. Bxd4 {[%clk 01:10:36]} {[%emt
00:01:10]} f6 {[%clk 01:06:47]} {[%emt 00:00:20]} 18. Bxd5+ {[%clk 01:09:44]}
{[%emt 00:01:22]} Kh8 {[%clk 01:06:53]} {[%emt 00:00:24]} 19. Bxa8 {[%clk
01:09:09]} {[%emt 00:01:05]} Bxf1 {[%clk 01:07:05]} {[%emt 00:00:17]} 20. Ne6
{[%clk 01:09:18]} {[%emt 00:00:22]} 1-0

[Event "Mistrovství Čech mládeže 2023 - HD12"]
[Site "Harrachov, Czech Republic"]
[Date "2023.10.25"]
[Round "6.8"]
[White "Černý, Rodan"]
[Black "Kroulík, Štěpán"]
[Result "1-0"]
[TimeControl "90m + 30s"]
[WhiteElo "1383"]
[BlackElo "1454"]

1. e4 {[%clk 01:30:55]} {[%emt 00:00:04]} c5 {[%clk 01:30:54]} {[%emt
00:00:07]} 2. Nf3 {[%clk 01:31:23]} {[%emt 00:00:02]} e6 {[%clk 01:31:07]}
{[%emt 00:00:17]} 3. d4 {[%clk 01:31:44]} {[%emt 00:00:08]} cxd4 {[%clk
01:31:31]} {[%emt 00:00:05]} 4. Nxd4 {[%clk 01:32:06]} {[%emt 00:00:08]} a6
{[%clk 01:31:39]} {[%emt 00:00:24]} 5. a4 {[%clk 01:30:44]} {[%emt 00:01:52]}
Nc6 {[%clk 01:31:48]} {[%emt 00:00:21]} 6. g3 {[%clk 01:29:31]} {[%emt
00:01:42]} Qc7 {[%clk 01:31:28]} {[%emt 00:00:50]} 7. Be3 {[%clk 01:29:11]}
{[%emt 00:00:50]} Nf6 {[%clk 01:31:00]} {[%emt 00:00:58]} 8. Bg2 {[%clk
01:28:53]} {[%emt 00:00:48]} Be7 {[%clk 01:29:59]} {[%emt 00:01:32]} 9. O-O
{[%clk 01:28:51]} {[%emt 00:00:31]} O-O {[%clk 01:29:20]} {[%emt 00:01:09]} 10.
Nc3 {[%clk 01:28:30]} {[%emt 00:00:51]} d6 {[%clk 01:27:23]} {[%emt 00:02:27]}
11. Nxc6 {[%clk 01:22:57]} {[%emt 00:06:04]} bxc6 {[%clk 01:26:52]} {[%emt
00:01:01]} 12. a5 {[%clk 01:23:00]} {[%emt 00:00:26]} d5 {[%clk 01:23:18]}
{[%emt 00:04:04]} 13. Bb6 {[%clk 01:21:15]} {[%emt 00:02:16]} Qd7 {[%clk
01:22:43]} {[%emt 00:01:04]} 14. Qe2 {[%clk 01:18:43]} {[%emt 00:03:02]} Qb7
{[%clk 01:19:08]} {[%emt 00:04:05]} 15. Rfd1 {[%clk 01:15:19]} {[%emt
00:03:54]} Bd8 {[%clk 01:18:08]} {[%emt 00:01:29]} 16. Bc5 {[%clk 01:12:30]}
{[%emt 00:03:19]} Be7 {[%clk 01:15:06]} {[%emt 00:03:33]} 17. Bb6 {[%clk
00:55:57]} {[%emt 00:17:03]} Re8 {[%clk 01:09:38]} {[%emt 00:05:58]} 18. Rab1
{[%clk 00:54:48]} {[%emt 00:01:38]} Nd7 {[%clk 01:08:21]} {[%emt 00:01:47]} 19.
exd5 {[%clk 00:52:54]} {[%emt 00:02:24]} Nxb6 {[%clk 01:01:47]} {[%emt
00:07:05]} 20. dxc6 {[%clk 00:52:49]} {[%emt 00:00:35]} Qc7 {[%clk 01:01:21]}
{[%emt 00:00:56]} 21. axb6 {[%clk 00:52:54]} {[%emt 00:00:25]} Qxb6 {[%clk
01:01:34]} {[%emt 00:00:18]} 22. b4 {[%clk 00:48:01]} {[%emt 00:05:23]} Rb8
{[%clk 00:57:23]} {[%emt 00:04:40]} 23. b5 {[%clk 00:45:02]} {[%emt 00:03:29]}
axb5 {[%clk 00:56:30]} {[%emt 00:01:23]} 24. Rxb5 {[%clk 00:45:20]} {[%emt
00:00:12]} Qc7 {[%clk 00:56:46]} {[%emt 00:00:14]} 25. Rxb8 {[%clk 00:39:50]}
{[%emt 00:06:00]} Qxb8 {[%clk 00:57:03]} {[%emt 00:00:13]} 26. Rb1 {[%clk
00:34:28]} {[%emt 00:05:52]} Qa7 {[%clk 00:55:01]} {[%emt 00:02:27]} 27. Nb5
{[%clk 00:29:33]} {[%emt 00:05:30]} Qa2 {[%clk 00:53:48]} {[%emt 00:01:43]} 28.
Nc3 {[%clk 00:29:03]} {[%emt 00:00:59]} Qa7 {[%clk 00:53:19]} {[%emt 00:00:59]}
29. Qb5 {[%clk 00:28:12]} {[%emt 00:01:22]} Rd8 {[%clk 00:52:39]} {[%emt
00:01:10]} 30. Qb8 {[%clk 00:25:55]} {[%emt 00:02:47]} Qxb8 {[%clk 00:47:29]}
{[%emt 00:05:40]} 31. Rxb8 {[%clk 00:25:59]} {[%emt 00:00:26]} Ba6 {[%clk
00:45:16]} {[%emt 00:02:42]} 32. c7 {[%clk 00:25:29]} {[%emt 00:01:00]} Rc8
{[%clk 00:45:36]} {[%emt 00:00:11]} 33. Nb5 {[%clk 00:25:04]} {[%emt 00:00:55]}
Bc5 {[%clk 00:45:21]} {[%emt 00:00:44]} 34. Bb7 {[%clk 00:24:47]} {[%emt
00:00:48]} Bxb7 {[%clk 00:45:02]} {[%emt 00:00:49]} 35. Rxb7 {[%clk 00:25:06]}
{[%emt 00:00:11]} Kf8 {[%clk 00:41:22]} {[%emt 00:04:10]} 36. Rb8 {[%clk
00:25:25]} {[%emt 00:00:11]} 1-0

[Event "Mistrovství Čech mládeže 2023 - HD12"]
[Site "Harrachov, Czech Republic"]
[Date "2023.10.25"]
[Round "6.9"]
[White "Kubát, Jonáš"]
[Black "Mrázik, Marek"]
[Result "1/2-1/2"]
[TimeControl "90m + 30s"]
[WhiteElo "1423"]
[BlackElo "1159"]

1. e4 {[%clk 01:30:59]} e6 {[%clk 01:30:20]} {[%emt 00:00:41]} 2. d4 {[%clk
01:31:23]} {[%emt 00:00:06]} c5 {[%clk 01:28:36]} {[%emt 00:02:14]} 3. d5
{[%clk 01:30:12]} {[%emt 00:01:41]} exd5 {[%clk 01:28:20]} {[%emt 00:00:46]} 4.
exd5 {[%clk 01:30:30]} {[%emt 00:00:12]} d6 {[%clk 01:28:39]} {[%emt 00:00:11]}
5. c4 {[%clk 01:30:48]} {[%emt 00:00:12]} Nf6 {[%clk 01:28:51]} {[%emt
00:00:18]} 6. Bg5 {[%clk 01:30:52]} {[%emt 00:00:25]} Be7 {[%clk 01:27:19]}
{[%emt 00:02:03]} 7. Bf4 {[%clk 01:24:15]} {[%emt 00:07:07]} Bf5 {[%clk
01:26:02]} {[%emt 00:01:46]} 8. Nc3 {[%clk 01:24:08]} {[%emt 00:00:38]} O-O
{[%clk 01:23:25]} {[%emt 00:03:07]} 9. Nf3 {[%clk 01:24:06]} {[%emt 00:00:33]}
Na6 {[%clk 01:16:42]} {[%emt 00:07:13]} 10. Bd3 {[%clk 01:23:21]} {[%emt
00:01:14]} Bxd3 {[%clk 01:16:26]} {[%emt 00:00:46]} 11. Qxd3 {[%clk 01:23:34]}
{[%emt 00:00:17]} Nb4 {[%clk 01:16:23]} {[%emt 00:00:34]} 12. Qd2 {[%clk
01:23:10]} {[%emt 00:00:54]} Re8 {[%clk 01:16:08]} {[%emt 00:00:44]} 13. O-O
{[%clk 01:22:35]} {[%emt 00:01:05]} Qd7 {[%clk 01:14:41]} {[%emt 00:01:57]} 14.
a3 {[%clk 01:20:08]} {[%emt 00:02:58]} Na6 {[%clk 01:11:42]} {[%emt 00:03:28]}
15. Rae1 {[%clk 01:19:05]} {[%emt 00:01:34]} Bf8 {[%clk 01:11:07]} {[%emt
00:01:04]} 16. Nb5 {[%clk 01:12:42]} {[%emt 00:06:53]} Nc7 {[%clk 01:10:58]}
{[%emt 00:00:39]} 17. Nxc7 {[%clk 01:10:59]} {[%emt 00:02:13]} Qxc7 {[%clk
01:11:13]} {[%emt 00:00:16]} 18. Qc2 {[%clk 01:08:28]} {[%emt 00:03:01]} Qd7
{[%clk 01:08:25]} {[%emt 00:03:17]} 19. Nd2 {[%clk 01:06:44]} {[%emt 00:02:14]}
Re7 {[%clk 01:02:01]} {[%emt 00:06:55]} 20. Ne4 {[%clk 01:00:13]} {[%emt
00:07:01]} Nxe4 {[%clk 00:56:37]} {[%emt 00:05:53]} 21. Rxe4 {[%clk 01:00:30]}
{[%emt 00:00:13]} Rxe4 {[%clk 00:56:50]} {[%emt 00:00:17]} 22. Qxe4 {[%clk
01:00:52]} {[%emt 00:00:08]} Re8 {[%clk 00:57:13]} {[%emt 00:00:08]} 23. Qd3
{[%clk 00:57:31]} {[%emt 00:03:51]} Qg4 {[%clk 00:52:08]} {[%emt 00:05:35]} 24.
Qg3 {[%clk 00:55:41]} {[%emt 00:02:21]} Qxg3 {[%clk 00:44:19]} {[%emt
00:08:19]} 25. fxg3 {[%clk 00:55:44]} {[%emt 00:00:27]} Re2 {[%clk 00:44:11]}
{[%emt 00:00:36]} 26. b4 {[%clk 00:55:17]} {[%emt 00:00:59]} b6 {[%clk
00:43:39]} {[%emt 00:01:01]} 27. bxc5 {[%clk 00:54:00]} {[%emt 00:01:47]} bxc5
{[%clk 00:43:55]} {[%emt 00:00:15]} 28. Rb1 {[%clk 00:53:20]} {[%emt 00:01:10]}
Re8 {[%clk 00:42:39]} {[%emt 00:01:45]} 29. Rb7 {[%clk 00:52:13]} {[%emt
00:01:38]} Re7 {[%clk 00:40:11]} {[%emt 00:02:56]} 30. Rb8 {[%clk 00:51:24]}
{[%emt 00:01:20]} Rd7 {[%clk 00:40:31]} {[%emt 00:00:11]} 31. Kf2 {[%clk
00:49:50]} {[%emt 00:03:54]} f6 {[%clk 00:39:25]} {[%emt 00:01:36]} 32. h4
{[%clk 00:49:11]} {[%emt 00:01:09]} Kf7 {[%clk 00:38:00]} {[%emt 00:01:55]} 33.
Kf3 {[%clk 00:48:12]} {[%emt 00:01:29]} g6 {[%clk 00:36:27]} {[%emt 00:02:03]}
34. g4 {[%clk 00:46:34]} {[%emt 00:02:07]} Ke7 {[%clk 00:36:02]} {[%emt
00:00:56]} 35. g5 {[%clk 00:45:34]} {[%emt 00:01:30]} f5 {[%clk 00:35:43]}
{[%emt 00:00:49]} 36. g4 {[%clk 00:45:47]} {[%emt 00:00:16]} fxg4+ {[%clk
00:35:55]} {[%emt 00:00:18]} 37. Kxg4 {[%clk 00:46:06]} {[%emt 00:00:11]} Rd8
{[%clk 00:35:41]} {[%emt 00:00:44]} 38. Rxd8 {[%clk 00:45:28]} {[%emt
00:01:08]} Kxd8 {[%clk 00:36:02]} {[%emt 00:00:10]} 39. h5 {[%clk 00:45:43]}
{[%emt 00:00:15]} Kc7 {[%clk 00:33:44]} {[%emt 00:02:47]} 40. hxg6 {[%clk
00:44:54]} {[%emt 00:01:20]} hxg6 {[%clk 00:34:12]} {[%emt 00:00:02]} 41. Kf3
{[%clk 00:45:01]} {[%emt 00:00:22]} a6 {[%clk 00:33:09]} {[%emt 00:01:33]} 42.
Ke2 {[%clk 00:44:38]} {[%emt 00:00:53]} Kb7 {[%clk 00:33:03]} {[%emt 00:00:37]}
43. Bd2 {[%clk 00:40:50]} {[%emt 00:04:18]} Be7 {[%clk 00:32:49]} {[%emt
00:00:44]} 44. a4 {[%clk 00:39:13]} {[%emt 00:02:07]} Bd8 {[%clk 00:32:08]}
{[%emt 00:01:10]} 45. Bf4 {[%clk 00:37:31]} {[%emt 00:02:12]} Kc7 {[%clk
00:31:38]} {[%emt 00:01:01]} 46. Kf3 {[%clk 00:33:11]} {[%emt 00:04:48]} a5
{[%clk 00:30:38]} {[%emt 00:00:16]} 1/2-1/2